{"text_format":"1","workbook":"xlsx","n_sheets":5,"sheets":["DEMANDE","ANALYSE","BILAN","LISTES","INFOS"],"not_rendered":{"charts":0,"images":1,"macros":1,"external_links":0,"defined_names":3,"comments":2,"pivot_tables":0},"unopened":[],"bounds":{"document_bytes":16777216,"sheet_cells":100000,"rows_first":2000,"rows_last":500,"rows_between":2000,"halvings":0,"cell_chars":16384,"cell_head_chars":4096},"cells_cut":0,"cells_raw":0,"read":"whole","date_system":"1900"}

{"sheet":"DEMANDE","index":0,"n_rows":183,"n_cols":10,"rows_kept":183,"cut":false,"hidden":false,"merged":[[73,0,73,1],[74,0,74,1],[75,0,75,1],[73,2,73,3],[74,2,74,3],[164,3,164,4],[18,1,18,6],[47,0,47,7],[40,0,40,7],[33,0,33,7],[34,0,39,7],[41,0,46,7],[48,0,53,7],[71,0,71,1],[70,0,70,7],[133,0,133,7],[132,0,132,7],[131,0,131,7],[130,0,130,7],[123,0,127,7],[72,0,72,1],[75,2,75,3],[76,2,76,3],[77,2,77,3],[163,3,163,4],[75,7,78,7],[104,0,110,7],[114,0,120,7],[129,0,129,7],[140,0,140,7],[86,0,92,7],[95,0,101,7],[138,0,138,7],[137,0,137,7],[136,0,136,7],[135,0,135,7],[134,0,134,7],[78,0,78,1],[79,0,79,1],[122,0,122,7],[84,0,84,7],[112,0,112,7],[83,0,83,7],[0,0,0,7],[72,7,74,7],[32,0,32,7],[21,0,21,7],[22,0,30,7],[71,2,71,3],[2,0,2,7],[6,5,6,6],[4,1,4,2],[6,1,6,2],[8,1,8,2],[10,1,10,2],[68,1,68,3],[56,1,56,3],[55,0,55,7],[1,1,1,4],[16,1,16,2],[8,5,8,6],[180,0,180,3],[181,0,181,3],[182,0,182,3],[171,2,171,3],[175,2,175,3],[176,2,176,3],[179,1,179,3],[177,0,177,3],[178,0,178,3],[172,1,172,3],[173,0,173,3],[174,1,174,2],[76,0,76,1],[77,0,77,1]]}
["Demande d'aide financière au Fonds d'intervention pour le développement du secteur agroalimentaire (FIDSA)"]
[null,"Formulaire demande collective"]
["Renseignements sur le demandeur et son représentant"]
[]
["Nom de l'entreprise ou de l'organisme",null,null,null,"Statut",null,null,null,null,1]
[]
["Répondant",null,null,null,"Téléphone"]
[]
["Adresse",null,null,null,"Courriel"]
[]
["Ville",null,null,null,"Code postal"]
[]
["MRC"]
[]
["Numéro d'identification ministériel (NIM)"]
[]
["Municipalité ou MRC où se déroule le projet"]
[]
["Titre du projet"]
[]
[]
["PRÉSENTATION DU DEMANDEUR \n(Type d'organisme ou regroupement, historique, mission, activités, responsable de la coordination du projet)"]
[]
[]
[]
[]
[]
[]
[]
[]
[]
[]
["DESCRIPTION DU PROJET \n"]
["Description"]
[]
[]
[]
[]
[]
[]
["Objectifs poursuivis et retombées attendues"]
[]
[]
[]
[]
[]
[]
["Ressources et intervenants impliqués"]
[]
[]
[]
[]
[]
[]
[]
["Liste des investissements prévus"]
["Investissements","Mesure",null,null,"Coût","Aide financière potentielle","Date \nde début","Date \nde fin"]
[null,null,null,null,null,{"$f":"MIN((E58*VLOOKUP(J58,LISTES!$A$14:$K$24,10,FALSE)),VLOOKUP(J58,LISTES!$A$14:$K$24,7,FALSE))","v":0},null,null,null,1]
[null,null,null,null,null,{"$f":"MIN((E59*VLOOKUP(J59,LISTES!$A$14:$K$24,10,FALSE)),VLOOKUP(J59,LISTES!$A$14:$K$24,7,FALSE))","v":0},null,null,null,1]
[null,null,null,null,null,{"$f":"MIN((E60*VLOOKUP(J60,LISTES!$A$14:$K$24,10,FALSE)),VLOOKUP(J60,LISTES!$A$14:$K$24,7,FALSE))","v":0},null,null,null,9]
[null,null,null,null,null,{"$f":"MIN((E61*VLOOKUP(J61,LISTES!$A$14:$K$24,10,FALSE)),VLOOKUP(J61,LISTES!$A$14:$K$24,7,FALSE))","v":0},null,null,null,1]
[null,null,null,null,null,{"$f":"MIN((E62*VLOOKUP(J62,LISTES!$A$14:$K$24,10,FALSE)),VLOOKUP(J62,LISTES!$A$14:$K$24,7,FALSE))","v":0},null,null,null,1]
[null,null,null,null,null,{"$f":"MIN((E63*VLOOKUP(J63,LISTES!$A$14:$K$24,10,FALSE)),VLOOKUP(J63,LISTES!$A$14:$K$24,7,FALSE))","v":0},null,null,null,1]
[null,null,null,null,null,{"$f":"MIN((E64*VLOOKUP(J64,LISTES!$A$14:$K$24,10,FALSE)),VLOOKUP(J64,LISTES!$A$14:$K$24,7,FALSE))","v":0},null,null,null,1]
[null,null,null,null,null,{"$f":"MIN((E65*VLOOKUP(J65,LISTES!$A$14:$K$24,10,FALSE)),VLOOKUP(J65,LISTES!$A$14:$K$24,7,FALSE))","v":0},null,null,null,1]
[null,null,null,null,null,{"$f":"MIN((E66*VLOOKUP(J66,LISTES!$A$14:$K$24,10,FALSE)),VLOOKUP(J66,LISTES!$A$14:$K$24,7,FALSE))","v":0},null,null,null,1]
[null,null,null,null,null,{"$f":"MIN((E67*VLOOKUP(J67,LISTES!$A$14:$K$24,10,FALSE)),VLOOKUP(J67,LISTES!$A$14:$K$24,7,FALSE))","v":0},null,null,null,1]
[null,null,null,null,null,{"$f":"MIN((E68*VLOOKUP(J68,LISTES!$A$14:$K$24,10,FALSE)),VLOOKUP(J68,LISTES!$A$14:$K$24,7,FALSE))","v":0},null,null,null,1]
["Total",null,null,null,{"$f":"SUM(E58:E68)","v":0},{"$f":"MIN(150000,(SUM(F58:F68)))","v":0}]
[]
["Financement du projet (excluant les frais de gestion)"]
["Type de financement",null,"Organismes et programmes",null,"Statut du financement",{"$f":"E69","v":0},"Proportion","Cumul d'aide"]
["Aide financière FIDSA",null,null,null,null,{"$f":"F69","v":0},{"$f":"IFERROR(F73/F$72,\"\")","v":""},{"$f":"SUM(G73:G75)","v":0}]
["Autre aide financière",null,null,null,null,null,{"$f":"IFERROR(F74/F$72,\"\")","v":""}]
["Autre aide financière",null,null,null,null,null,""]
["Emprunt",null,null,null,null,null,""]
["Emprunt",null,null,null,null,null,""]
["Autre",null,null,null,null,null,""]
["Mise de fonds de l'organisme ou des entreprises",null,null,null,null,null,""]
[null,null,null,null,null,{"$f":"SUM(F73:F79)","v":0},{"$f":"SUM(G73:G79)","v":0},{"$f":"SUM(H73:H78)","v":0}]
[]
[]
[]
["En quoi le projet répond aux priorités du secteur?"]
["Sélectionner les trois objectifs de la Planification stratégique du secteur agroalimentaire de la Gaspésie 2023-2028 les plus en phase avec le projet présenté. \nDécrivez comment le projet permet d'atteindre chacun des objectifs ciblés."]
[null,null,null,null,null,null,null,null,null,1]
[]
[]
[]
[]
[]
[]
[]
[]
[null,null,null,null,null,null,null,null,null,1]
[]
[]
[]
[]
[]
[]
[]
[]
[null,null,null,null,null,null,null,null,null,1]
[]
[]
[]
[]
[]
[]
[]
[]
["Impacts financiers du projet"]
["Décrivez comment le projet aura un impact financier favorable sur le secteur agricole régional. Quantifiez votre réponse lorsque possible."]
[]
[]
[]
[]
[]
[]
[]
[]
["Informations supplémentaires"]
[]
[]
[]
[]
[]
[]
["Documents à joindre à votre demande "]
["États financiers comptables ou formulaire T2042 de votre déclaration fiscale dans le cas d'un individu;"]
["Soumission pour équipement, matériel ou étude d'une valeur de plus de 2 500 $;"]
["Minimum de deux soumissions détaillées, lorsqu'une expertise externe est nécessaire (sauf exception autorisée);"]
["Lettres d'intention ou d'appui des partenaires, le cas écéhant;"]
["La version complétée du formulaire en format Excel;"]
["Une copie signée de votre demande en version pdf ou format image (jpeg ou autre);"]
["Résolution autorisant le dépôt de la demande;"]
["Curriculum vitae ou description de l'expérience et de la formation des personnes-clés engagées dans le projet;"]
["Veuillez noter que des documents supplémentaires pourraient vous être exigés au besoin."]
[]
["Engagement du demandeur et signature"]
[]
["Je certifie que les renseignements inscrits dans le formulaire et dans tous les documents fournis sont vrais, complets et exacts."]
[]
["Je comprends que la présente demande ne garantit pas l’obtention d’une aide financière pour ce projet et que cette aide est conditionnelle à l’acceptation"]
["du projet par le comité de gestion de l’entente sectorielle sous réserve des disponibilités budgétaires."]
[]
["Je consens à ce que les renseignements demandés et recueillis dans le contexte de cette demande financière soient\n partagés avec les organismes partenaires "]
["membres du comité de gestion et du comité de recommandations de l’entente sectorielle."]
[]
["Je consens à ce que les partenaires impliqués (FADQ, institution financière, UPA ou autre) communiquent au personnel du MAPAQ des informations relatives"]
[" pouvant être utiles ou nécessaires à l'analyse du  projet."]
[]
["Je reconnais que le projet est conforme aux lois ou aux règlements applicables et en vigueur, notamment en ce qui concerne la salubrité, l'innocuité des "]
["aliments et la sécurité, la protection du territoire agricole ainsi que l’environnement."]
[]
["Je certifie que je suis mandaté(e) pour signer cette demande d'aide financière et que je peux en faire la preuve sur demande."]
[]
[]
[{"$f":"IF(B7=\"\",\"\",B7)","v":""}]
["Prénom et nom en lettres moulées"]
[]
[]
[]
["Signature du demandeur",null,null,"Date"]
[]
[]
[]
[]
[]
["À l'usage du MAPAQ"]
["Demande 1","Demandeur : ",{"$f":"B5","v":0}]
["Titre du projet:",{"$f":"B19","v":0}]
["Mesure :  "]
["Localisation : "]
["$ demandée: ","$ recommandée: ","$ total du projet : "]
[{"$f":"#REF!","v":{"$error":"#REF!"}},{"$f":"ANALYSE!I37","v":0},{"$f":"E69","v":0}]
["Description du projet :"]
["."]
["Analyse conseiller ",{"$f":"ANALYSE!G7","v":0}]
["."]
["Recommandation (s) du comité :"]
["$"]

{"sheet":"ANALYSE","index":1,"n_rows":176,"n_cols":15,"rows_kept":176,"cut":false,"hidden":true,"merged":[[36,6,36,7],[89,0,89,5],[57,0,57,1],[58,8,60,8],[65,2,65,3],[65,0,65,1],[61,2,61,3],[62,2,62,3],[63,2,63,3],[64,0,64,1],[58,0,58,1],[59,0,59,1],[60,0,60,1],[89,6,89,8],[149,0,152,8],[103,6,103,8],[124,0,127,8],[154,1,154,2],[161,1,161,2],[161,6,161,7],[157,1,157,2],[135,0,138,8],[164,1,164,2],[164,6,164,7],[87,0,87,8],[49,0,52,8],[80,0,83,8],[61,0,61,1],[56,0,56,8],[57,2,57,3],[59,2,59,3],[60,2,60,3],[62,0,62,1],[63,0,63,1],[115,6,115,8],[140,5,140,8],[90,6,101,8],[132,0,132,8],[0,0,0,8],[6,4,6,5],[4,4,4,5],[6,6,6,8],[11,0,11,8],[10,0,10,8],[4,6,4,8],[5,6,5,8],[22,15,22,17],[35,15,35,17],[20,0,20,8],[21,5,21,8],[21,0,21,4],[172,2,172,3],[169,2,169,3],[170,1,170,3],[174,0,174,3],[175,0,175,3],[173,2,173,3],[171,2,171,3]]}
["Formulaire d'analyse de projet collectif"]
[]
["Titre du projet: ",{"$f":"IF(DEMANDE!B19=\"\",\"\",DEMANDE!B19)","v":""}]
[]
["Nom de l'entreprise",{"$f":"IF(DEMANDE!B5=\"\",\"\",DEMANDE!B5)","v":""},null,null,"Numéro de projet : "]
["Répondant",{"$f":"IF(DEMANDE!B7=\"\",\"\",DEMANDE!B7)","v":""},null,null,null,"Date de réception du projet: "]
["Adresse",{"$f":"IF(DEMANDE!B9=\"\",\"\",DEMANDE!B9)","v":""},null,null,"Répondant MAPAQ :"]
["Ville",{"$f":"IF(DEMANDE!B11=\"\",\"\",DEMANDE!B11)","v":""}]
["Téléphone",{"$f":"IF(DEMANDE!F7=\"\",\"\",DEMANDE!F7)","v":""}]
[]
["Admissibilité de la demande et du promoteur"]
[]
["Entreprise enregistrée au MAPAQ (détient un NIM)",null,null,null,null,null,null,null,null,null,null,null,null,null,1]
[]
["Projet localisé sur le territoire de la Gaspésie ou des Îles-de-la-Madeleine",null,null,null,null,null,null,null,null,null,null,null,null,null,1]
[]
["Au moins un investissement présenté dans la demande est admissible à une aide",null,null,null,null,null,null,null,null,null,null,null,null,null,1]
[]
["Présences de soumissions"]
[null,null,null,null,null,null,null,null,null,null,null,null,null,null,1]
["Investissements prévus"]
["Demande du client",null,null,null,null,"Lettre d'offre"]
["Investissements","Mesures choisies par le client","Coût prévue","Aide financière","Échance prévue par le client","Mesures proposées","Coûts totaux","Coût admissible","Aide financière"]
[{"$f":"IF(DEMANDE!A58=\"\",\"\",DEMANDE!A58)","v":""},{"$f":"IF(A24=\"\",\"\",IFERROR(VLOOKUP(N24,LISTES!$A$14:$B$24,2),\"\"))","v":""},{"$f":"DEMANDE!E58","v":0},{"$f":"DEMANDE!F58","v":0},{"$f":"IF(DEMANDE!H58=\"\",\"\",DEMANDE!H58)","v":""},null,null,null,{"$f":"MIN((H24*VLOOKUP(O24,LISTES!A$14:K$24,10,FALSE)),VLOOKUP(O24,LISTES!A$14:K$24,7,FALSE))","v":0},null,null,null,null,{"$f":"DEMANDE!J58","v":1},1]
[{"$f":"IF(DEMANDE!A59=\"\",\"\",DEMANDE!A59)","v":""},{"$f":"IF(A25=\"\",\"\",IFERROR(VLOOKUP(N25,LISTES!$A$14:$B$24,2),\"\"))","v":""},{"$f":"DEMANDE!E59","v":0},{"$f":"DEMANDE!F59","v":0},{"$f":"IF(DEMANDE!H59=\"\",\"\",DEMANDE!H59)","v":""},null,null,null,{"$f":"MIN((H25*VLOOKUP(O25,LISTES!A$14:K$24,10,FALSE)),VLOOKUP(O25,LISTES!A$14:K$24,7,FALSE))","v":0},null,null,null,null,{"$f":"DEMANDE!J59","v":1},1]
[{"$f":"IF(DEMANDE!A60=\"\",\"\",DEMANDE!A60)","v":""},{"$f":"IF(A26=\"\",\"\",IFERROR(VLOOKUP(N26,LISTES!$A$14:$B$24,2),\"\"))","v":""},{"$f":"DEMANDE!E60","v":0},{"$f":"DEMANDE!F60","v":0},{"$f":"IF(DEMANDE!H60=\"\",\"\",DEMANDE!H60)","v":""},null,null,null,{"$f":"MIN((H26*VLOOKUP(O26,LISTES!A$14:K$24,10,FALSE)),VLOOKUP(O26,LISTES!A$14:K$24,7,FALSE))","v":0},null,null,null,null,{"$f":"DEMANDE!J60","v":9},1]
[{"$f":"IF(DEMANDE!A61=\"\",\"\",DEMANDE!A61)","v":""},{"$f":"IF(A27=\"\",\"\",IFERROR(VLOOKUP(N27,LISTES!$A$14:$B$24,2),\"\"))","v":""},{"$f":"DEMANDE!E61","v":0},{"$f":"DEMANDE!F61","v":0},{"$f":"IF(DEMANDE!H61=\"\",\"\",DEMANDE!H61)","v":""},null,null,null,{"$f":"MIN((H27*VLOOKUP(O27,LISTES!A$14:K$24,10,FALSE)),VLOOKUP(O27,LISTES!A$14:K$24,7,FALSE))","v":0},null,null,null,null,{"$f":"DEMANDE!J61","v":1},1]
[{"$f":"IF(DEMANDE!A62=\"\",\"\",DEMANDE!A62)","v":""},{"$f":"IF(A28=\"\",\"\",IFERROR(VLOOKUP(N28,LISTES!$A$14:$B$24,2),\"\"))","v":""},{"$f":"DEMANDE!E62","v":0},{"$f":"DEMANDE!F62","v":0},{"$f":"IF(DEMANDE!H62=\"\",\"\",DEMANDE!H62)","v":""},null,null,null,{"$f":"MIN((H28*VLOOKUP(O28,LISTES!A$14:K$24,10,FALSE)),VLOOKUP(O28,LISTES!A$14:K$24,7,FALSE))","v":0},null,null,null,null,{"$f":"DEMANDE!J62","v":1},1]
[{"$f":"IF(DEMANDE!A63=\"\",\"\",DEMANDE!A63)","v":""},{"$f":"IF(A29=\"\",\"\",IFERROR(VLOOKUP(N29,LISTES!$A$14:$B$24,2),\"\"))","v":""},{"$f":"DEMANDE!E63","v":0},{"$f":"DEMANDE!F63","v":0},{"$f":"IF(DEMANDE!H63=\"\",\"\",DEMANDE!H63)","v":""},null,null,null,{"$f":"MIN((H29*VLOOKUP(O29,LISTES!A$14:K$24,10,FALSE)),VLOOKUP(O29,LISTES!A$14:K$24,7,FALSE))","v":0},null,null,null,null,{"$f":"DEMANDE!J63","v":1},1]
[{"$f":"IF(DEMANDE!A64=\"\",\"\",DEMANDE!A64)","v":""},{"$f":"IF(A30=\"\",\"\",IFERROR(VLOOKUP(N30,LISTES!$A$14:$B$24,2),\"\"))","v":""},{"$f":"DEMANDE!E64","v":0},{"$f":"DEMANDE!F64","v":0},{"$f":"IF(DEMANDE!H64=\"\",\"\",DEMANDE!H64)","v":""},null,null,null,{"$f":"MIN((H30*VLOOKUP(O30,LISTES!A$14:K$24,10,FALSE)),VLOOKUP(O30,LISTES!A$14:K$24,7,FALSE))","v":0},null,null,null,null,{"$f":"DEMANDE!J64","v":1},1]
[{"$f":"IF(DEMANDE!A65=\"\",\"\",DEMANDE!A65)","v":""},{"$f":"IF(A31=\"\",\"\",IFERROR(VLOOKUP(N31,LISTES!$A$14:$B$24,2),\"\"))","v":""},{"$f":"DEMANDE!E65","v":0},{"$f":"DEMANDE!F65","v":0},{"$f":"IF(DEMANDE!H65=\"\",\"\",DEMANDE!H65)","v":""},null,null,null,{"$f":"MIN((H31*VLOOKUP(O31,LISTES!A$14:K$24,10,FALSE)),VLOOKUP(O31,LISTES!A$14:K$24,7,FALSE))","v":0},null,null,null,null,{"$f":"DEMANDE!J65","v":1},1]
[{"$f":"IF(DEMANDE!A66=\"\",\"\",DEMANDE!A66)","v":""},{"$f":"IF(A32=\"\",\"\",IFERROR(VLOOKUP(N32,LISTES!$A$14:$B$24,2),\"\"))","v":""},{"$f":"DEMANDE!E66","v":0},{"$f":"DEMANDE!F66","v":0},{"$f":"IF(DEMANDE!H66=\"\",\"\",DEMANDE!H66)","v":""},null,null,null,{"$f":"MIN((H32*VLOOKUP(O32,LISTES!A$14:K$24,10,FALSE)),VLOOKUP(O32,LISTES!A$14:K$24,7,FALSE))","v":0},null,null,null,null,{"$f":"DEMANDE!J66","v":1},1]
[{"$f":"IF(DEMANDE!A67=\"\",\"\",DEMANDE!A67)","v":""},{"$f":"IF(A33=\"\",\"\",IFERROR(VLOOKUP(N33,LISTES!$A$14:$B$24,2),\"\"))","v":""},{"$f":"DEMANDE!E67","v":0},{"$f":"DEMANDE!F67","v":0},{"$f":"IF(DEMANDE!H67=\"\",\"\",DEMANDE!H67)","v":""},null,null,null,{"$f":"MIN((H33*VLOOKUP(O33,LISTES!A$14:K$24,10,FALSE)),VLOOKUP(O33,LISTES!A$14:K$24,7,FALSE))","v":0},null,null,null,null,{"$f":"DEMANDE!J67","v":1},1]
[{"$f":"IF(DEMANDE!A68=\"\",\"\",DEMANDE!A68)","v":""},{"$f":"IF(A34=\"\",\"\",IFERROR(VLOOKUP(N34,LISTES!$A$14:$B$24,2),\"\"))","v":""},{"$f":"DEMANDE!E68","v":0},{"$f":"DEMANDE!F68","v":0},{"$f":"IF(DEMANDE!H68=\"\",\"\",DEMANDE!H68)","v":""},null,null,null,{"$f":"MIN((H34*VLOOKUP(O34,LISTES!A$14:K$24,10,FALSE)),VLOOKUP(O34,LISTES!A$14:K$24,7,FALSE))","v":0},null,null,null,null,{"$f":"DEMANDE!J68","v":1},1]
[null,null,{"$f":"DEMANDE!E69","v":0},{"$f":"DEMANDE!F69","v":0},null,null,{"$f":"SUM(G24:G34)","v":0},{"$f":"SUM(H24:H34)","v":0},{"$f":"MIN(150000,(SUM(I24:I34)))","v":0}]
["Frais de gestion (15 %)",null,{"$f":"DEMANDE!#REF!","v":{"$error":"#REF!"}},{"$f":"DEMANDE!#REF!","v":{"$error":"#REF!"}},null,null,null,{"$f":"MIN((I35*15%),1500000-I35)","v":0},{"$f":"MIN((I35*0.15*0.5),(150000-I35))","v":0}]
[null,null,null,{"$f":"D35+D36","v":{"$error":"#REF!"}},null,"Échéance proposée",null,null,{"$f":"I35+I36","v":0}]
[]
["Les estimations de coûts semblent raisonnables relativement à la nature des investissements prévus.",null,null,null,null,null,{"$f":"(O39-1)","v":0},"/ 5",null,null,null,null,null,null,1]
[]
["Les investissements semblent appropriés compte tenu de la nature du projet.",null,null,null,null,null,{"$f":"(O41-1)","v":0},"/ 5",null,null,null,null,null,null,1]
[]
["Les échéances semblent réalistes.",null,null,null,null,null,{"$f":"(O43-1)","v":0},"/ 5",null,null,null,null,null,null,1]
[]
["Les ressources impliqués sont compétentes relativement au mandat.",null,null,null,null,null,{"$f":"(O45-1)","v":0},"/ 5",null,null,null,null,null,null,1]
[]
["Appréciation globale de l'analyste.",null,null,null,null,null,{"$f":"(O47-1)","v":0},"/ 5",null,null,null,null,null,null,1]
[]
["Commentaires de l'analyste"]
[]
[]
[]
[]
[]
["Pointage d’Investissements:",{"$f":"G39+G41+G43+G47+G45","v":0},"/25",{"$f":"B55/20","v":0}]
[]
["Financement"]
["Besoin de financement",null,"Organisme",null,"Statut","Prévu","Proposé","Proportion","Cumul d'aide"]
["Aide financière FIDSA",null,null,null,"Recommandé",{"$f":"DEMANDE!F73","v":0},{"$f":"I35","v":0},{"$f":"IFERROR(G59/$G$66,\"\")","v":""},{"$f":"SUM(H59:H61)","v":0},null,null,null,null,null,4]
["Autre aide financière",null,null,null,null,{"$f":"DEMANDE!F74","v":0},null,{"$f":"IFERROR(G60/$G$66,\"\")","v":""},null,null,null,null,null,null,1]
["Autre aide financière",null,null,null,null,{"$f":"DEMANDE!F75","v":0},null,"",null,null,null,null,null,null,1]
["Emprunt",null,null,null,null,{"$f":"DEMANDE!F76","v":0},null,"",null,null,null,null,null,null,1]
["Emprunt",null,null,null,null,{"$f":"DEMANDE!F77","v":0},null,"",null,null,null,null,null,null,1]
["Autre",null,null,null,null,{"$f":"DEMANDE!F78","v":0},null,"",null,null,null,null,null,null,1]
["Mise de fonds de l'entreprise/promoteur",null,null,null,"Confirmé",{"$f":"DEMANDE!F79","v":0},null,"",null,null,null,null,null,null,4]
[null,null,null,null,null,{"$f":"SUM(F59:F65)","v":0},{"$f":"SUM(G59:G65)","v":0},{"$f":"SUM(H59:H65)","v":0},{"$f":"IFERROR(I59+#REF!,\"\")","v":""}]
[null,null,null,null,null,"Total des investissements (G36) :",{"$f":"G35","v":0}]
["Proportion du financement recommandé ou confirmé",null,{"$f":"SUMIF(O59:O65,4,H59:H65)","v":0},null,"Financement recommandé(FIDSA) ou déjà confirmé:",null,null,{"$f":"IF(C68>0.9,5,IF(C68>0.7,4,IF(C68>0.5,3,IF(C68>0.3,2,IF(C68>0,1,0)))))","v":0},"/ 5"]
["Proportion du financement en cours d'analyse",null,{"$f":"SUMIF(O59:O65,3,H59:H65)","v":0},null,"État des démarches de financement (En analyse ou confirmé)",null,null,{"$f":"IF(C68+C69>0.9,5,IF(C68+C69>0.7,4,IF(C68+C69>0.5,3,IF(C68+C69>0.3,2,IF(C68+C69>0,1,0)))))","v":0},"/ 5"]
["Proportion du financement non demandé",null,{"$f":"SUMIF(O59:O65,2,H59:H65)+SUMIF(O59:O65,1,H59:H65)","v":0}]
[]
["Le financement du projet exploite bien les diverses possibilités offertes dans le secteur (subventions et prêts garantis)",null,null,null,null,null,null,{"$f":"(O72-1)","v":0},"/ 5",null,null,null,null,null,1]
[]
["Le financement du projet est bien structuré et ne constitue pas un risque à court terme pour les liquidités de l'entreprise ",null,null,null,null,null,null,{"$f":"(O74-1)","v":0},"/ 5",null,null,null,null,null,1]
[]
["Le promoteur a des alternatives en cas de dépassement de coûts (capacité d'injecter des fonds, d'emprunter, etc.)",null,null,null,null,null,null,{"$f":"(O76)-1","v":0},"/ 5",null,null,null,null,null,1]
[]
["Appréciation globale de l'analyste.",null,null,null,{"$f":"(O78-1)","v":0},"/ 5",null,null,null,null,null,null,null,null,1]
[]
["Commentaires de l'analyste"]
[]
[]
[]
[]
[]
["Pointage de Financement:",{"$f":"IFERROR(H68+H69+H72+H76+H74+E78,0)","v":0},"/30",{"$f":"IFERROR(B86/30,\"\")","v":0}]
[]
["Retombées du projet et liens avec la planification stratégique"]
[]
["Objectifs du projet",null,null,null,null,null,"Explications des résultats présentés"]
[{"$f":"VLOOKUP(DEMANDE!J86,LISTES!$A$146:$B$168,2,FALSE)","v":0}]
[]
[{"$f":"VLOOKUP(DEMANDE!J95,LISTES!$A$146:$B$168,2,FALSE)","v":0}]
[]
[{"$f":"VLOOKUP(DEMANDE!J104,LISTES!$A$146:$B$168,2,FALSE)","v":0}]
[]
[]
[]
["Les liens entre le projet et les objectifs de la planification sont clairs.",null,null,{"$f":"IF(O99=6,5,IF(O99=5,4,IF(O99=4,3,IF(O99=3,2,IF(O99=2,1,0)))))","v":0},"/ 5",null,null,null,null,null,null,null,null,null,1]
[]
["Les solutions proposées favorisent l'atteinte des objectifs.",null,null,{"$f":"IF(O101=6,5,IF(O101=5,4,IF(O101=4,3,IF(O101=3,2,IF(O101=2,1,0)))))","v":0},"/ 5",null,null,null,null,null,null,null,null,null,1]
[]
["Les solutions proposées sont facilement applicables.",null,null,0,"/ 5",null,null,null,null,null,null,null,null,null,1]
[null,null,null,null,null,null,"Résumé des états financiers du demandeur"]
["Les solutions proposées sont pérennes.",null,null,0,"/ 5",null,null,null,null,null,null,null,null,null,1]
[null,null,null,null,null,"Produits"]
["La portée du projet est large et touche beaucoup d'entreprises.",null,null,0,"/ 5","Charges variables",null,null,null,null,null,null,null,null,1]
[null,null,null,null,null,"Charges fixes"]
["Le coût du projet est conséquent avec les résultats attendus.",null,null,0,"/ 5","Bénéfice net",null,null,null,null,null,null,null,null,1]
[null,null,null,null,null,"Actifs ct"]
["Probabilités que le projet soit un succès complet.",null,null,0,"/ 5","Actifs lt",null,null,null,null,null,null,null,null,1]
[null,null,null,null,null,"Passifs ct"]
["Les principaux intervenants du secteur adhèrent au projet",null,null,{"$f":"IF(O113=6,5,IF(O113=5,4,IF(O113=4,3,IF(O113=3,2,IF(O113=2,1,0)))))","v":0},"/ 5","Passifs lt",null,null,null,null,null,null,null,null,1]
[null,null,null,null,null,"Capitaux propres"]
["Appréciation globale de l'analyste",null,null,0,"/ 5",null,null,null,null,null,null,null,null,null,1]
[null,null,null,null,null,null,"Ratios"]
[null,null,null,null,null,"Marge bénéficiaire (BN/Pr)",{"$f":"IFERROR(G109/G106,\"\")","v":""},{"$f":"IFERROR(H109/H106,\"\")","v":""},{"$f":"IFERROR(I109/I106,\"\")","v":""}]
[null,null,null,null,null,"Endettement (P/A)",{"$f":"IFERROR((G112+G113)/(G110+G111),\"\")","v":""},{"$f":"IFERROR((H112+H113)/(H110+H111),\"\")","v":""},{"$f":"IFERROR((I112+I113)/(I110+I111),\"\")","v":""}]
[null,null,null,null,null,"Liquidité générale (Act/Pct)",{"$f":"IFERROR((G110/G112),\"\")","v":""},{"$f":"IFERROR((H110/H112),\"\")","v":""},{"$f":"IFERROR((I110/I112),\"\")","v":""}]
[null,null,null,null,null,"Rendement actifs  (BN/A)",{"$f":"IFERROR((G109/(G110+G111)),\"\")","v":""},{"$f":"IFERROR((H109/(H110+H111)),\"\")","v":""},{"$f":"IFERROR((I109/(I110+I111)),\"\")","v":""}]
[null,null,null,null,null,"Rendement  capitaux (BN/CP)",{"$f":"IFERROR((G109/G114),\"\")","v":""},{"$f":"IFERROR((H109/H114),\"\")","v":""},{"$f":"IFERROR((I109/I114),\"\")","v":""}]
[]
[]
["Commentaires de l'analyste"]
[]
[]
[]
[]
[]
["Pointage d’Effets du projet:",{"$f":"D99+D101+D103+D105+D107+D109+D111+D115+D113","v":0},"/45",{"$f":"B130/40","v":0}]
[]
[]
["Recommandations"]
[]
["Commentaires de l'analyste"]
[]
[]
[]
[]
[]
["Pointage Évaluation du projet",{"$f":"B55+B86+B130","v":0},"/100",{"$f":"B141/100","v":0}]
[]
["Pointage Comité d'analyse",null,"/15",{"$f":"B143/15","v":0}]
[]
["Pointage total",{"$f":"B141+B143","v":0},"/115",{"$f":"B145/115","v":0}]
[]
["Recommandation",null,null,null,null,null,null,null,null,null,null,null,null,null,1]
[]
["Commentaires ou conditions particulières"]
[]
[]
[]
[]
[]
["Analyste :",{"$f":"IF(G7=\"\",\"\",G7)","v":""}]
[]
[]
["Signature"]
[]
[]
[]
["Comité d'analyse"]
[]
[]
["Signatures"]
[]
[]
[]
[]
["Demande X","Demandeur : ",{"$f":"DEMANDE!B5","v":0}]
["Titre du projet:",{"$f":"DEMANDE!B19","v":0}]
["Localisation : ",{"$f":"DEMANDE!B11","v":0},"MRC"]
["Aide demandée: ","Aide recommandée: ","Coût total du projet : \n"]
[]
["Description du projet :"]
["Recommandation du comité :"]

{"sheet":"BILAN","index":2,"n_rows":79,"n_cols":16,"rows_kept":79,"cut":false,"hidden":true,"merged":[[11,10,11,11],[11,12,11,13],[11,14,11,15],[29,6,29,8],[0,0,0,8],[3,5,3,6],[2,5,2,6],[78,7,78,8],[75,2,75,4],[10,0,10,3],[10,4,10,6],[27,4,27,5],[26,3,26,5],[29,0,29,5],[23,0,25,0]]}
["Formulaire de bilan de projet et de réclamation"]
[]
["Nom de l'entreprise",null,{"$f":"IF(DEMANDE!B5=\"\",\"\",DEMANDE!B5)","v":""},null,"Numéro de projet : ",{"$f":"IF(ANALYSE!G5=\"\",\"\",ANALYSE!G5)","v":""}]
["Répondant",null,{"$f":"IF(DEMANDE!B7=\"\",\"\",DEMANDE!B7)","v":""},null,"Répondant MAPAQ :",{"$f":"IF(ANALYSE!G7=\"\",\"\",ANALYSE!G7)","v":""}]
["Adresse",null,{"$f":"IF(DEMANDE!B9=\"\",\"\",DEMANDE!B9)","v":""}]
["Ville",null,{"$f":"IF(DEMANDE!B11=\"\",\"\",DEMANDE!B11)","v":""},null,"Réclamation",1,{"$f":"L24","v":0}]
["Téléphone",null,{"$f":"IF(DEMANDE!F11=\"\",\"\",DEMANDE!F11)","v":""},null,"Réclamation",2,{"$f":"N24","v":0}]
[null,null,null,null,"Réclamation",3,{"$f":"P24","v":0}]
[null,null,null,null,null,null,{"$f":"SUM(G6:G8)","v":0}]
[]
["Coût prévu et aide financière estimée",null,null,null,"Coût et aide du projet réalisé"]
["No associé à l'investissement initial","Investissements prévus dans la demande","Coût d'acquisition prévue","Aide financière demandée","Investissements réalisés dans le projet","Coût d'acquisition réelle","Aide financière demandée",null,null,null,"Réclamation 1",null,"Réclamation 2",null,"Réclamation 3"]
[1,{"$f":"ANALYSE!A24","v":""},{"$f":"DEMANDE!E58","v":0},{"$f":"DEMANDE!F58","v":0},null,{"$f":"SUMIF($A$32:$A$67,A13,$G$32:$G$67)","v":0},{"$f":"F13*(IF(DEMANDE!J58=3,60%,(IF(DEMANDE!J58=4,30%,50%))))","v":0},null,null,null,{"$f":"SUMIFS($G$32:$G$67,$A$32:$A$67,$A13,$H$32:$H$67,1)","v":0},{"$f":"K13*(IF(DEMANDE!J58=3,60%,(IF(DEMANDE!J58=4,30%,50%))))","v":0},{"$f":"SUMIFS($G$32:$G$67,$A$32:$A$67,$A13,$H$32:$H$67,2)","v":0},{"$f":"M13*(IF(DEMANDE!L58=3,60%,(IF(DEMANDE!L58=4,30%,50%))))","v":0},{"$f":"SUMIFS($G$32:$G$67,$A$32:$A$67,$A13,$H$32:$H$67,3)","v":0},{"$f":"O13*(IF(DEMANDE!N58=3,60%,(IF(DEMANDE!N58=4,30%,50%))))","v":0}]
[2,{"$f":"ANALYSE!A25","v":""},{"$f":"DEMANDE!E59","v":0},{"$f":"DEMANDE!F59","v":0},null,0,{"$f":"F14*(IF(DEMANDE!J59=3,60%,(IF(DEMANDE!J59=4,30%,50%))))","v":0},null,null,null,0,{"$f":"K14*(IF(DEMANDE!J59=3,60%,(IF(DEMANDE!J59=4,30%,50%))))","v":0},0,{"$f":"M14*(IF(DEMANDE!L59=3,60%,(IF(DEMANDE!L59=4,30%,50%))))","v":0},0,{"$f":"O14*(IF(DEMANDE!N59=3,60%,(IF(DEMANDE!N59=4,30%,50%))))","v":0}]
[3,{"$f":"ANALYSE!A26","v":""},{"$f":"DEMANDE!E60","v":0},{"$f":"DEMANDE!F60","v":0},null,0,{"$f":"F15*(IF(DEMANDE!J60=3,60%,(IF(DEMANDE!J60=4,30%,50%))))","v":0},null,null,null,0,{"$f":"K15*(IF(DEMANDE!J60=3,60%,(IF(DEMANDE!J60=4,30%,50%))))","v":0},0,{"$f":"M15*(IF(DEMANDE!L60=3,60%,(IF(DEMANDE!L60=4,30%,50%))))","v":0},0,{"$f":"O15*(IF(DEMANDE!N60=3,60%,(IF(DEMANDE!N60=4,30%,50%))))","v":0}]
[4,{"$f":"ANALYSE!A27","v":""},{"$f":"DEMANDE!E61","v":0},{"$f":"DEMANDE!F61","v":0},null,0,{"$f":"F16*(IF(DEMANDE!J61=3,60%,(IF(DEMANDE!J61=4,30%,50%))))","v":0},null,null,null,0,{"$f":"K16*(IF(DEMANDE!J61=3,60%,(IF(DEMANDE!J61=4,30%,50%))))","v":0},0,{"$f":"M16*(IF(DEMANDE!L61=3,60%,(IF(DEMANDE!L61=4,30%,50%))))","v":0},0,{"$f":"O16*(IF(DEMANDE!N61=3,60%,(IF(DEMANDE!N61=4,30%,50%))))","v":0}]
[5,{"$f":"ANALYSE!A28","v":""},{"$f":"DEMANDE!E62","v":0},{"$f":"DEMANDE!F62","v":0},null,0,{"$f":"F17*(IF(DEMANDE!J62=3,60%,(IF(DEMANDE!J62=4,30%,50%))))","v":0},null,null,null,0,{"$f":"K17*(IF(DEMANDE!J62=3,60%,(IF(DEMANDE!J62=4,30%,50%))))","v":0},0,{"$f":"M17*(IF(DEMANDE!L62=3,60%,(IF(DEMANDE!L62=4,30%,50%))))","v":0},0,{"$f":"O17*(IF(DEMANDE!N62=3,60%,(IF(DEMANDE!N62=4,30%,50%))))","v":0}]
[6,{"$f":"ANALYSE!A29","v":""},{"$f":"DEMANDE!E63","v":0},{"$f":"DEMANDE!F63","v":0},null,0,{"$f":"F18*(IF(DEMANDE!J63=3,60%,(IF(DEMANDE!J63=4,30%,50%))))","v":0},null,null,null,0,{"$f":"K18*(IF(DEMANDE!J63=3,60%,(IF(DEMANDE!J63=4,30%,50%))))","v":0},0,{"$f":"M18*(IF(DEMANDE!L63=3,60%,(IF(DEMANDE!L63=4,30%,50%))))","v":0},0,{"$f":"O18*(IF(DEMANDE!N63=3,60%,(IF(DEMANDE!N63=4,30%,50%))))","v":0}]
[7,{"$f":"ANALYSE!A30","v":""},{"$f":"DEMANDE!E64","v":0},{"$f":"DEMANDE!F64","v":0},null,0,{"$f":"F19*(IF(DEMANDE!J64=3,60%,(IF(DEMANDE!J64=4,30%,50%))))","v":0},null,null,null,0,{"$f":"K19*(IF(DEMANDE!J64=3,60%,(IF(DEMANDE!J64=4,30%,50%))))","v":0},0,{"$f":"M19*(IF(DEMANDE!L64=3,60%,(IF(DEMANDE!L64=4,30%,50%))))","v":0},0,{"$f":"O19*(IF(DEMANDE!N64=3,60%,(IF(DEMANDE!N64=4,30%,50%))))","v":0}]
[8,{"$f":"ANALYSE!A31","v":""},{"$f":"DEMANDE!E65","v":0},{"$f":"DEMANDE!F65","v":0},null,0,{"$f":"F20*(IF(DEMANDE!J65=3,60%,(IF(DEMANDE!J65=4,30%,50%))))","v":0},null,null,null,0,{"$f":"K20*(IF(DEMANDE!J65=3,60%,(IF(DEMANDE!J65=4,30%,50%))))","v":0},0,{"$f":"M20*(IF(DEMANDE!L65=3,60%,(IF(DEMANDE!L65=4,30%,50%))))","v":0},0,{"$f":"O20*(IF(DEMANDE!N65=3,60%,(IF(DEMANDE!N65=4,30%,50%))))","v":0}]
[9,{"$f":"ANALYSE!A32","v":""},{"$f":"DEMANDE!E66","v":0},{"$f":"DEMANDE!F66","v":0},null,0,{"$f":"F21*(IF(DEMANDE!J66=3,60%,(IF(DEMANDE!J66=4,30%,50%))))","v":0},null,null,null,0,{"$f":"K21*(IF(DEMANDE!J66=3,60%,(IF(DEMANDE!J66=4,30%,50%))))","v":0},0,{"$f":"M21*(IF(DEMANDE!L66=3,60%,(IF(DEMANDE!L66=4,30%,50%))))","v":0},0,{"$f":"O21*(IF(DEMANDE!N66=3,60%,(IF(DEMANDE!N66=4,30%,50%))))","v":0}]
[10,{"$f":"ANALYSE!A33","v":""},{"$f":"DEMANDE!E67","v":0},{"$f":"DEMANDE!F67","v":0},null,0,{"$f":"F22*(IF(DEMANDE!J67=3,60%,(IF(DEMANDE!J67=4,30%,50%))))","v":0},null,null,null,0,{"$f":"K22*(IF(DEMANDE!J67=3,60%,(IF(DEMANDE!J67=4,30%,50%))))","v":0},0,{"$f":"M22*(IF(DEMANDE!L67=3,60%,(IF(DEMANDE!L67=4,30%,50%))))","v":0},0,{"$f":"O22*(IF(DEMANDE!N67=3,60%,(IF(DEMANDE!N67=4,30%,50%))))","v":0}]
[11,{"$f":"ANALYSE!A34","v":""},{"$f":"DEMANDE!E68","v":0},{"$f":"DEMANDE!F68","v":0},null,0,{"$f":"F23*(IF(DEMANDE!J68=3,60%,(IF(DEMANDE!J68=4,30%,50%))))","v":0},null,null,null,0,{"$f":"K23*(IF(DEMANDE!J68=3,60%,(IF(DEMANDE!J68=4,30%,50%))))","v":0},0,{"$f":"M23*(IF(DEMANDE!L68=3,60%,(IF(DEMANDE!L68=4,30%,50%))))","v":0},0,{"$f":"O23*(IF(DEMANDE!N68=3,60%,(IF(DEMANDE!N68=4,30%,50%))))","v":0}]
[null,"Coût du projet et aide financière",{"$f":"DEMANDE!E69","v":0},{"$f":"DEMANDE!F69","v":0},"Coût du projet et aide financière",{"$f":"SUM(F13:F23)","v":0},{"$f":"SUM(G13:G23)","v":0},null,null,null,{"$f":"SUM(K13:K23)","v":0},0,0,0,0,0]
[null,"Frais de gestion (15 %)",{"$f":"DEMANDE!#REF!","v":{"$error":"#REF!"}},{"$f":"DEMANDE!#REF!","v":{"$error":"#REF!"}},"Frais de gestion (15 %)",{"$f":"0.15*SUM(F13:F23)","v":0},{"$f":"F25*50%","v":0}]
[null,null,{"$f":"C24+C25","v":{"$error":"#REF!"}},{"$f":"D24+D25","v":{"$error":"#REF!"}},null,{"$f":"F24+F25","v":0},{"$f":"G24+G25","v":0}]
[null,null,null,"Solde ou dépassement (en négatif) de l'engagement initial :",null,null,{"$f":"D26-G26","v":{"$error":"#REF!"}}]
[null,null,null,null,"Dépassement de l'engagement initial (en %) :",null,{"$f":"IFERROR(IF(G24>D24,-(G27/D24),0),\"\")","v":0}]
[]
["Liste des pièces justificatives et liens avec les investissements dans le tableau du haut",null,null,null,null,null,"À l'usage du MAPAQ"]
["No associé à l'investissement initial","Type de dépenses","Date","No de facture","Fournisseur","Montants avant taxes","Montants admissibles avant taxes","Séquence de réclamations","Date de réclamation"]
[]
[]
[]
[]
[]
[]
[]
[]
[]
[]
[]
[]
[]
[]
[]
[]
[]
[]
[]
[]
[]
[]
[]
[]
[]
[]
[]
[]
[]
[]
[]
[]
[]
[]
[]
[]
[]
["- J’atteste que les montants inscrits correspondent à la somme, avant taxes, réellement engagée et payée aux fins du Projet accepté dans le cadre du FIDSA."]
["- Je joins au formulaire une copie de chaque facture qui y est présentée ainsi que l'ensemble des pièces justificatives exigées et j’en certifie l’authenticité."]
["- J’ai informé le ministère de l'Agriculture, des Pêcheries et de l'Alimention de toute somme d’argent reçue ou à recevoir d’un autre ministère ou organisme "]
["gouvernemental, liée au présent projet pour lequel je reçois une aide financière."]
[]
["Bilan de mon projet: Mon projet a permis de réduire le stress financier et la charge de travail liés à mon entreprise",null,null,null,null,null,null,null,null,1]
[]
[null,"Prénom et nom en lettres moulées :",{"$f":"IF(DEMANDE!B7=\"\",\"\",DEMANDE!B7)","v":""}]
[]
[]
[null,"Signature du bénéficiaire ou de son représentant : ",null,null,null,null,"Date : "]

{"sheet":"LISTES","index":3,"n_rows":168,"n_cols":11,"rows_kept":168,"cut":false,"hidden":true,"merged":[]}
[]
[null,"Communauté autochtone"]
[null,"Municipalité ou MRC"]
[null,"Organisme de concertation ou de promotion"]
[null,"Organsime sans but lucratif"]
[null,"UPA et syndicats affiliés"]
[null,"Regroupement d'entreprises agroalimentaires"]
[null,"Autre"]
[]
[null,"Au moins un propriétaire de moins de 45 ans, établi depuis moins de 5 ans"]
[null,"Au moins un propriétaire de moins de 45 ans"]
[null,"Tous les propriétaires ont plus de 45 ans"]
[null,null,null,null,null,null,null,null,null,"Taux aide","Cumul"]
[1]
[2,"2.A - Dév. régional agroalimentaire  - essai ou démonstration",null,null,null,null,2000,{"$f":"SUMIF(ANALYSE!$O$24:$O$34,A15,ANALYSE!$I$24:$I$34)","v":0},{"$f":"IF(H15>G15,\"Oui\",\"Non\")","v":"Non"},0.7,0.8]
[3,"2.A - Dév. régional agroalimentaire  - accompagnement",null,null,null,null,25000,{"$f":"SUMIF(ANALYSE!$O$24:$O$34,A16,ANALYSE!$I$24:$I$34)","v":0},{"$f":"IF(H16>G16,\"Oui\",\"Non\")","v":"Non"},0.8,0.8]
[4,"2.A - Dév. régional agroalimentaire  - CUMA",null,null,null,null,20000,{"$f":"SUMIF(ANALYSE!$O$24:$O$34,A17,ANALYSE!$I$24:$I$34)","v":0},"Non",0.6,0.8]
[5,"2.B - Dév. régional agroalimentaire  - projet structurant",null,null,null,null,25000,{"$f":"SUMIF(ANALYSE!$O$24:$O$34,A18,ANALYSE!$I$24:$I$34)","v":0},"Non",0.8,0.8]
[6,"2.C - Dév. régional agroalimentaire  - marché public",null,null,null,null,5000,{"$f":"SUMIF(ANALYSE!$O$24:$O$34,A19,ANALYSE!$I$24:$I$34)","v":0},"Non",0.5,0.8]
[7,"2.C - Dév. régional agroalimentaire  - promotion",null,null,null,null,20000,{"$f":"SUMIF(ANALYSE!$O$24:$O$34,A20,ANALYSE!$I$24:$I$34)","v":0},"Non",0.5,0.8]
[8,"3.A - Dév. agroalimentaire d'une MRC ",null,null,null,null,30000,{"$f":"SUMIF(ANALYSE!$O$24:$O$34,A21,ANALYSE!$I$24:$I$34)","v":0},"Non",0.8,0.8]
[9,null,null,null,null,null,null,{"$f":"SUMIF(ANALYSE!$O$24:$O$34,A22,ANALYSE!$I$24:$I$34)","v":0},"Non"]
[10,null,null,null,null,null,null,{"$f":"SUMIF(ANALYSE!$O$24:$O$34,A23,ANALYSE!$I$24:$I$34)","v":0},"Non"]
[11,null,null,null,null,null,null,{"$f":"SUMIF(ANALYSE!$O$24:$O$34,A24,ANALYSE!$I$24:$I$34)","v":0},"Non"]
[null,null,null,null,null,null,null,{"$f":"SUM(H15:H24)","v":0}]
[]
[]
[1]
[2,"1.1 Réduire le déficit de fertilité des sols"]
[3,"1.2 Soutenir les producteurs dans l’adoption de bonnes pratiques visant l’amélioration de la santé des sols et leur rendement"]
[4,"1.3 Soutenir le secteur et les entreprises dans les défis reliés à l’adaptation aux changements climatiques"]
[5,"3.3 Appuyer les entreprises dans leurs projets d’optimisation et de modernisation des infrastructures et équipements "]
[6,"3.6 Favoriser l’établissement de la relève et le transfert des entreprises existantes"]
[7,"4.2  Soutenir les initiatives visant l’amélioration de la performance des cheptels "]
[8,"5.3 Appuyer la transférabilité des fermes pour sécuriser le territoire agricole cultivé de la région"]
[]
[]
[]
[null,"Aucune formation reconnue"]
[null,"Niv. 3 - DEP en agriculture"]
[null,"Niv. 3 - AEC en agriculture"]
[null,"Niv. 3 - DEC non relié à l'agriculture"]
[null,"Niv. 2 - DEC connexe à l'agriculture"]
[null,"Niv. 2 - DEP & AEC en agriculture"]
[null,"Niv. 1 -DEC en agriculture"]
[null,"Niv. 1 - Baccalauréat en agriculture"]
[]
[null,"Non demandé"]
[null,"En analyse"]
[null,"Confirmé"]
[]
[]
[null,"Avignon"]
[null,"Bonaventure"]
[null,"Côte-de-Gaspé"]
[null,"Haute-Gaspésie"]
[null,"Rocher-Percé"]
[]
[]
[null,"Apiculture"]
[null,"Bovins de boucherie"]
[null,"Bovins laitiers"]
[null,"Caprins de boucherie"]
[null,"Caprins laitiers"]
[null,"Ovins"]
[null,"Autres prod. animales"]
[null,"---------------"]
[null,"Acériculture"]
[null,"Grandes cultures"]
[null,"Horticulture ornementale"]
[null,"Maraîchage diversifié"]
[null,"Pommes de terre"]
[null,"Production fourragère"]
[null,"Production fruitière"]
[null,"Produits forestiers non ligneux"]
[null,"Autres prod. végétales"]
[null,"---------------"]
[null,"Transformateur (+50 % produits régionaux)"]
[]
[1]
[2,"- de 30 %",1]
[3,"30 % & +",2]
[4,"50 % & +",3]
[5,"70 % & +",4]
[6,"90 % & +",5]
[]
[]
[]
[null,"Oui"]
[null,"Non"]
[]
[]
[null,"Faible"]
[null,"Moyen"]
[null,"Bon"]
[null,"Très bon"]
[null,"Excellent"]
[]
[]
[null,"Aucune"]
[null,"Peu"]
[null,"Quelques-unes"]
[null,"Plusieurs"]
[null,"Non problématique"]
[]
[]
[null,"< 0 %"]
[null,"0 - 5 %"]
[null,"5-10 %"]
[null,"10 - 20 %"]
[null,"> 20 %"]
[]
[]
[]
[null,"< 0 %"]
[null,"0 - 2,5 %"]
[null,"2,5 - 5 %"]
[null,"5 - 10 %"]
[null,"> 10 %"]
[]
[]
[]
[null,"Projet accepté tel que soumis"]
[null,"Projet accepté avec conditions"]
[null,"Projet accepté avec modifications"]
[null,"Projet refusé"]
[null,"Projet inadmissible"]
[]
[null,"Beaucoup"]
[null,"Moyennement"]
[null,"Peu"]
[null,"Pas du tout"]
[]
[]
[null,"Terrain ou immeuble qui est la propriété de l'entreprise, d'un de ses propriétaires ou du demandeur."]
[null,"Terrain ou immeuble avec bail enregistré ou publié (minimum de 5 ans). Nécessaire quand l'investissement admissible est > 10 000 $."]
[null,"Terrain ou immeuble avec bail (minimum de 5 ans ou mention renouvelable). Nécessaire quand l' investissement admissible est < 10 000$."]
[null,"Terrain ou immeuble avec bail à des fins commerciales, délivré par le ministère des Ressources naturelles et des Forêts ou par une MRC délégataire."]
[]
[]
[null,"Toutes les soumissions nécessaires sont présentes"]
[null,"Aucune soumission n'est nécessaire"]
[null,"Certaines soumissions sont manquantes"]
[null,"Toutes les soumissions sont manquantes"]
[]
[1]
[2,"1.1   Réduire le déficit de fertilité des sols"]
[3,"1.2   Soutenir les producteurs dans l’adoption de bonnes pratiques visant l’amélioration de la santé des sols et leur rendement"]
[4,"1.3   Soutenir le secteur et les entreprises dans les défis reliés à l’adaptation aux changements climatiques"]
[5,"2.1   Développer les compétences en gestion financière et en gestion des ressources humaines des producteurs et entrepreneurs afin d’atténuer le stress financier et la charge de travail "]
[6,"2.2   Mettre en place des initiatives pour combler des besoins en main-d'œuvre ponctuels et permanents"]
[7,"2.3   Maintenir et bonifier l’aide psychosociale auprès des entrepreneurs agroalimentaires"]
[8,"3.1   Intéresser les producteurs au développement de leurs compétences de gestion d’entreprise (planification, organisation, direction et contrôle)"]
[9,"3.2   Réseauter les partenaires pour structurer une offre d’accompagnement des entreprises pour la réalisation de diagnostics et de plans d’affaires et faciliter l’accès aux services-conseils"]
[10,"3.3   Appuyer les entreprises dans leurs projets d’optimisation et de modernisation des infrastructures et équipements"]
[11,"3.4   Continuer à appuyer les entreprises dans leurs efforts de commercialisation et de distribution de leurs produits en région et hors région"]
[12,"3.5   Appuyer les entreprises dans leurs efforts de promotion de leurs produits"]
[13,"3.6   Favoriser l’établissement de la relève et le transfert des entreprises existantes"]
[14,"4.1   Améliorer l’accessibilité aux services spécialisés dans le soin et la gestion des cheptels"]
[15,"4.2   Soutenir les initiatives visant l’amélioration de la performance des cheptels"]
[16,"4.3   Améliorer l’accessibilité au service d’abattage"]
[17,"4.4   Démontrer la contribution des productions animales à l’occupation et la vitalité du territoire à la population gaspésienne"]
[18,"5.1   Collaborer avec l’ensemble des MRC pour identifier les enjeux propres à chacun des territoires en lien avec la disponibilité et l’accessibilité aux terres et les intégrer dans les planifications de développement du secteur agricole"]
[19,"5.2   Appuyer la mise en oeuvre des plans de développement du secteur agricole des MRC de la région"]
[20,"5.3   Appuyer la transférabilité des fermes pour sécuriser le territoire agricole cultivé de la région"]
[21,"6.1   Démontrer l’importance économique et sociale du secteur auprès des intervenants socio-économiques et de la population"]
[22,"6.2   Assurer la concertation entre les intervenants du secteur et la mise en oeuvre de la présente planification stratégique"]
[23,"6.3   Favoriser l’adhésion des producteurs aux initiatives collectives et projets structurants"]

{"sheet":"INFOS","index":4,"n_rows":3,"n_cols":7,"rows_kept":3,"cut":false,"hidden":true,"merged":[]}
[]
[]
[null,null,{"$f":"DEMANDE!B5","v":0},{"$f":"DEMANDE!B7","v":0},{"$f":"DEMANDE!B9","v":0},{"$f":"DEMANDE!B11","v":0},{"$f":"DEMANDE!F7","v":0}]